[Event "44th Chess Olympiad Open 2022"]
[Site "Chennai"]
[Date "2022.08.05"]
[Round "7.20"]
[White "Thybo, Jesper Sondergaard"]
[Black "Sipila, Vilka"]
[Result "1/2-1/2"]
[ECO "A96"]
[WhiteElo "2520"]
[BlackElo "2416"]
[Annotator "TA"]
[PlyCount "121"]
[EventDate "2022.07.29"]
[EventType "team-tourn"]
[EventCountry "IND"]
[SourceTitle "playchess.com"]
[Source "ChessBase"]
[SourceQuality "1"]
[WhiteTeam "Denmark"]
[BlackTeam "Finland"]
[WhiteTeamCountry "DEN"]
[BlackTeamCountry "FIN"]
[TimeControl "40/5400+30:1800+30"]

{[%evp 14,121,54,48,47,39,45,0,26,-4,36,22,52,45,72,67,68,68,99,104,77,39,49,31,58,42,53,51,56,27,27,27,26,25,62,0,0,0,0,0,0,0,22,21,21,21,20,18,22,14,15,16,46,46,46,46,46,46,46,46,46,46,58,56,59,53,54,54,66,65,39,39,39,39,60,53,65,69,87,87,94,0,0,0,87,22,46,17,94,8,8,8,8,8,8,8,8,8,8,0,0,0,8,8,8,8,8,8,8,8]} 1. d4 {[%emt 0:00:05]} e6 {[%emt 0:00:08]} 2. c4 {[%emt 0:00:50]} f5 {[%emt 0:00:13]} 3. g3 {[%emt 0:00:48]} Nf6 {[%emt 0:00:07][%cal Bg8f6,Bf6e4,Be4d2][%mdl 32]} 4. Bg2 {[%emt 0:00:09]} Be7 {[%emt 0:00:19]} 5. Nf3 {[%emt 0:00:57]} O-O {[%emt 0:00:08]} 6. O-O {[%emt 0:00:54]} d6 {[%emt 0:00:09]} 7. b3 {[%emt 0:10:06]} a5 {[%emt 0:08:22]} 8. Bb2 {[%emt 0:00:00]} Ne4 {[%emt 0:00:41][%cal Oa5a4] Recently 8...a4 got a lot of attention. A96: Classical Dutch: Fluid Systems: Early deviations.} 9. Nfd2 {[%emt 0:00:00]} d5 {[%emt 0:07:21][%cal Oa5a4]} 10. f3 {[%emt 0:00:00]} Nxd2 {[%emt 0:00:47]} 11. Nxd2 {[%emt 0:00:20] [#]} Nc6 $146 {[%emt 0:02:00]} ({Predecessor:} 11... a4 12. e4 fxe4 13. fxe4 axb3 14. axb3 Rxf1+ 15. Qxf1 Rxa1 16. Bxa1 dxe4 17. Bxe4 Bf6 {½-½ (47) Wischounig,L (1878)-Kern,M (1957) Playchess.com INT 2020}) 12. f4 {[%emt 0:03:08]} a4 {[%emt 0:03:52]} 13. bxa4 {[%emt 0:08:25]} Na5 {[%emt 0:14:22]} 14. Qc2 {[%emt 0:08:45]} b6 {[%emt 0:05:59]} 15. Rfc1 {[%emt 0:05:35]} c5 {[%emt 0:07:45]} 16. cxd5 {[%emt 0:15:03]} exd5 {[%emt 0:00:21]} 17. dxc5 {[%emt 0:00:22]} Bxc5+ {[%emt 0:03:13]} 18. Kh1 {[%emt 0:00:38]} Be6 {[%emt 0:09:17]} 19. Nf3 {[%emt 0:08:08]} Nc4 {[%emt 0:04:10]} 20. Ng5 {[%emt 0:05:12]} Qe8 {[%emt 0:01:59]} 21. Qb3 {[%emt 0:04:57]} (21. Qc3 $5 {[%cal Rc3g7]} Nxb2 22. Qxb2 $14) 21... Kh8 {[%emt 0:14:23]} 22. Nxe6 {[%emt 0:13:13]} Qxe6 {[%emt 0:00:15]} 23. Bf3 {[%emt 0:00:08]} Ra7 {[%emt 0:06:49]} 24. Rd1 {[%emt 0:02:09]} ({White should try} 24. Bc3 $14) 24... Nxb2 $11 {[%emt 0:02:39]} 25. Qxb2 {[%emt 0:00:13]} d4 {[%emt 0:00:18]} 26. Qb3 {[%emt 0:01:01]} Qe8 {[%emt 0:01:24]} 27. Qb5 {[%emt 0:00:35]} Ra5 {[%emt 0:02:13]} 28. Qxe8 {[%emt 0:00:54]} Rxe8 {[%emt 0:00:05]} 29. Rac1 {[%emt 0:00:18]} g6 {[%emt 0:01:36]} 30. Rc4 {[%emt 0:01:34]} Kg7 {[%emt 0:00:36]} 31. Rb1 {[%emt 0:02:45]} Re7 {[%emt 0:01:32]} 32. Rb5 {[%emt 0:02:21]} Rea7 {[%emt 0:00:43]} 33. Rxa5 {[%emt 0:00:45]} Rxa5 $14 {[%emt 0:00:04][%mdl 4096] Endgame KRB-KRB} 34. Bc6 {[%emt 0:00:20]} Kf6 {[%emt 0:00:13]} 35. Kg2 {[%emt 0:01:11]} Ke6 {[%emt 0:00:30]} 36. Rc2 {[%emt 0:01:02]} Kd6 {[%emt 0:00:06]} 37. Bb5 {[%emt 0:00:05]} Ra7 {[%emt 0:00:03]} 38. h3 {[%emt 0:02:06]} Re7 {[%emt 0:03:11]} 39. Bd3 {[%emt 0:00:52]} Ra7 {[%emt 0:00:09]} 40. Rc4 {[%emt 0:00:30]} Kd5 {[%emt 0:00:37]} 41. Kf3 {[%emt 0:05:24]} h5 {[%emt 0:22:06]} 42. Kg2 {[%emt 0:10:08]} Ra8 {[%emt 0:04:32]} 43. Kf2 {[%emt 0:03:46]} Ra5 {[%emt 0:01:28]} 44. g4 {[%emt 0:00:48]} hxg4 {[%emt 0:01:24]} 45. hxg4 {[%emt 0:00:05]} Ra8 {[%emt 0:04:07]} 46. Kg3 {[%emt 0:02:43]} Ke6 {[%emt 0:00:29]} 47. Bc2 {[%emt 0:05:53]} (47. Rc1 $16) 47... Kd5 $11 {[%emt 0:00:39]} 48. Bd3 {[%emt 0:02:02]} Bd6 {[%emt 0:00:33] [#]} (48... Ke6 $1 $11) 49. gxf5 {[%emt 0:05:23]} (49. Rc2 $1 $16) 49... gxf5 {[%emt 0:00:10]} 50. Rc1 {[%emt 0:01:08]} (50. Kf3 $5 {[%cal Rc4c1]}) 50... Re8 {[%emt 0:00:17]} (50... Rxa4 $11 {remains equal.} 51. Rh1 Rxa2) 51. Bc4+ {[%emt 0:00:45]} (51. Rb1 $16) 51... Ke4 {[%emt 0:00:04] The position is equal.} 52. Rf1 {[%emt 0:00:23]} Re7 {[%emt 0:00:23]} 53. Bd3+ {[%emt 0:00:28]} Ke3 {[%emt 0:00:03]} 54. Rf3+ {[%emt 0:00:26]} Kd2 {[%emt 0:00:01]} 55. Kf2 {[%emt 0:01:35]} Re8 {[%emt 0:01:01]} 56. Bb5 {[%emt 0:00:32]} Re4 {[%emt 0:00:25]} 57. Bd3 {[%emt 0:00:34]} Rxf4 {[%emt 0:02:05]} 58. Rxf4 {[%emt 0:00:09]} Bxf4 {[%emt 0:00:02]} 59. Kf3 {[%emt 0:00:06]} Be3 {[%emt 0:00:22]} 60. Bxf5 {[%emt 0:00:06]} Kc3 {[%emt 0:00:17]} 61. Be6 {[%emt 0:00:49] Weighted Error Value: White=0.13 (very precise) /Black=0.14 (very precise)} 1/2-1/2

[Event "44th Chess Olympiad Open 2022"]
[Site "Chennai"]
[Date "2022.08.05"]
[Round "7.20"]
[White "Sklyarov, Dmitry V."]
[Black "Andersen, Mads"]
[Result "1/2-1/2"]
[ECO "C47"]
[WhiteElo "2474"]
[BlackElo "2587"]
[Annotator "TA"]
[PlyCount "53"]
[EventDate "2022.07.29"]
[EventType "team-tourn"]
[EventCountry "IND"]
[SourceTitle "playchess.com"]
[Source "ChessBase"]
[SourceQuality "1"]
[WhiteTeam "Finland"]
[BlackTeam "Denmark"]
[WhiteTeamCountry "FIN"]
[BlackTeamCountry "DEN"]
[TimeControl "40/5400+30:1800+30"]

{[%evp 15,53,0,0,-1,16,16,16,16,16,16,12,11,12,10,11,7,16,14,18,10,30,30,27,27,20,14,18,0,0,0,0,0,0,0,0,0,0,0,0,0]} 1. e4 {[%emt 0:00:01]} e5 {[%emt 0:00:13]} 2. Nf3 {[%emt 0:00:10]} Nc6 {[%emt 0:00:12]} 3. Nc3 {[%emt 0:00:11]} Nf6 {[%emt 0:00:37]} 4. d4 {[%emt 0:01:53]} exd4 {[%emt 0:06:29]} 5. Nxd4 {[%emt 0:00:11]} Bb4 {[%emt 0:00:09]} 6. Nxc6 {[%emt 0:00:04]} bxc6 {[%emt 0:00:08]} 7. Bd3 {[%emt 0:00:01]} O-O {[%emt 0:03:04]} 8. O-O {[%emt 0:00:08]} d5 {[%emt 0:00:10]} 9. exd5 {[%emt 0:02:31] C47: Scotch Four Knights and Four Knights with 4 g3.} Bg4 {[%emt 0:00:16]} 10. f3 {[%emt 0:02:47]} Bh5 {[%emt 0:00:10]} 11. dxc6 {[%emt 0:00:34]} Qd4+ {[%emt 0:00:08]} 12. Kh1 {[%emt 0:00:20][%cal Od3h7]} Bxc3 {[%emt 0:00:09]} 13. bxc3 {[%emt 0:00:02]} Qxc3 {[%emt 0:00:11]} 14. Bf4 {[%emt 0:02:10]} Qxc6 {[%emt 0:01:18]} 15. Qe2 {[%emt 0:05:53]} Nd5 {[%emt 0:11:37]} 16. Bg3 {[%emt 0:04:49]} Bg6 {[%emt 0:04:02]} (16... Nc3 $5 {[%cal Rc3e2]} 17. Qe7 Bg6 $11) 17. Bb5 {[%emt 0:01:50] This bishop pair is nice.} Qxc2 {[%emt 0:14:03]} 18. Qxc2 {[%emt 0:03:37]} Bxc2 {[%emt 0:01:14]} 19. Rfc1 {[%emt 0:04:13]} Bf5 {[%emt 0:03:51]} 20. Bc6 {[%emt 0:09:56] The position is equal.} Rad8 {[%emt 0:00:16]} 21. Bxd5 {[%emt 0:00:06]} Rxd5 {[%emt 0:00:08]} 22. Rxc7 {[%emt 0:00:07] [#]} Rfd8 $146 {[%emt 0:07:16] [#] And now ...Rd1+ would win.} ({Predecessor:} 22... Rd7 23. Rxd7 Bxd7 24. Rb1 Rc8 25. Rb8 Rxb8 26. Bxb8 Be6 27. Bxa7 Bxa2 28. Bf2 f6 29. Kg1 Kf7 30. h3 h6 {½-½ (30) Sjugirov,S (2680)-Nihal,S (2652) Belgrade 2022}) 23. h4 {[%emt 0:03:13]} R8d7 {[%emt 0:03:02]} 24. Rc8+ {[%emt 0:02:11]} Rd8 {[%emt 0:00:07]} 25. Rc7 {[%emt 0:00:03]} R8d7 {[%emt 0:00:06]} 26. Rc8+ {[%emt 0:00:03]} Rd8 {[%emt 0:00:07]} 27. Rc7 {[%emt 0:00:07] An interesting draw.  Weighted Error Value: White=0.02 (flawless) /Black=0.03 (flawless)} 1/2-1/2

[Event "44th Chess Olympiad Open 2022"]
[Site "Chennai"]
[Date "2022.08.05"]
[Round "7.20"]
[White "Koykka, Pekka"]
[Black "Rasmussen, Allan Stig"]
[Result "1/2-1/2"]
[ECO "B48"]
[WhiteElo "2361"]
[BlackElo "2550"]
[Annotator "TA"]
[PlyCount "118"]
[EventDate "2022.07.29"]
[EventType "team-tourn"]
[EventCountry "IND"]
[SourceTitle "playchess.com"]
[Source "ChessBase"]
[SourceQuality "1"]
[WhiteTeam "Finland"]
[BlackTeam "Denmark"]
[WhiteTeamCountry "FIN"]
[BlackTeamCountry "DEN"]
[TimeControl "40/5400+30:1800+30"]

{[%evp 16,118,21,18,18,25,22,12,8,13,25,0,13,20,13,26,22,16,18,11,20,0,0,0,6,7,11,10,45,25,16,10,14,4,20,0,0,0,33,0,5,5,5,5,5,4,4,4,4,4,8,8,8,8,8,0,0,0,0,0,0,0,17,0,17,17,17,8,8,0,17,17,17,17,17,17,41,41,41,41,41,41,41,41,41,41,41,41,41,29,29,29,29,29,29,8,8,8,8,8,8,0,8,8,8]} 1. e4 {[%emt 0:00:05]} c5 {[%emt 0:00:25]} 2. Nf3 {[%emt 0:00:12]} e6 {[%emt 0:00:16]} 3. d4 {[%emt 0:00:17]} cxd4 {[%emt 0:00:07]} 4. Nxd4 {[%emt 0:00:08]} Nc6 {[%emt 0:00:09]} 5. Nc3 {[%emt 0:00:23]} Qc7 {[%emt 0:00:13]} 6. Be3 {[%emt 0:01:05]} a6 {[%emt 0:00:38]} 7. Bd3 {[%emt 0:06:05]} Nf6 {[%emt 0:06:05][%cal Bg8f6,Bf6g4,Bg4e3][%mdl 32]} 8. O-O {[%emt 0:01:55]} Ne5 {[%emt 0:04:47]} 9. Nf3 {[%emt 0:08:38]} Nfg4 {[%emt 0:19:12] [#] ( -> ...Nxf3+). B48: Sicilian: Taimanov: 5 Nc3 Qc7 6 Be3 a6 without Be2.} 10. Nxe5 {[%emt 0:02:00]} Nxe3 {[%emt 0:00:16]} 11. Qh5 {[%emt 0:06:26]} ({Much weaker is} 11. fxe3 Qxe5 12. Qf3 f6 $15) 11... g6 {[%emt 0:01:03]} 12. Qf3 {[%emt 0:00:08]} Qxe5 {[%emt 0:00:26]} (12... Nxf1 $2 13. Qxf7+ Kd8 14. Qf6+ Ke8 15. Qxh8 $18) 13. fxe3 {[%emt 0:00:16]} f6 {[%emt 0:00:23]} 14. Qxf6 {[%emt 0:00:39]} Qxf6 {[%emt 0:00:07]} 15. Rxf6 {[%emt 0:00:05]} Bg7 {[%emt 0:00:10]} 16. Rf3 {[%emt 0:00:42]} b5 {[%emt 0:05:40]} 17. Raf1 {[%emt 0:08:00]} Bb7 {[%emt 0:04:16]} 18. Nd1 {[%emt 0:01:55] [#]} (18. Rf7 {seems wilder.} Be5 19. Ne2 Bxb2 20. Nd4) 18... Rc8 $146 {[%emt 0:16:05]} ({Predecessor:} 18... Be5 19. c3 g5 20. Rh3 h5 21. g4 hxg4 22. Rxh8+ Bxh8 23. Nf2 Ke7 24. Nxg4 Bg7 {1-0 (50) De la Paz Perdomo,F (2473)-Gonzalez Garcia,J (2511) Toluca 2011}) 19. c3 {[%emt 0:01:17]} Rf8 {[%emt 0:02:37]} 20. a3 {[%emt 0:07:13]} Ke7 {[%emt 0:01:22]} 21. Nf2 {[%emt 0:04:16]} Rc5 {[%emt 0:06:28]} 22. Rxf8 {[%emt 0:22:34]} Bxf8 {[%emt 0:01:49]} 23. Re1 {[%emt 0:03:57]} Bg7 {[%emt 0:07:38]} 24. Be2 {[%emt 0:03:55]} a5 {[%emt 0:05:12]} 25. Bf3 {[%emt 0:03:24]} Rc4 {[%emt 0:03:44]} 26. Be2 {[%emt 0:00:38]} Rc5 {[%emt 0:00:05]} 27. Bf3 {[%emt 0:00:10]} Rc7 {[%emt 0:08:16]} 28. Nd3 {[%emt 0:04:49]} Ba6 {[%emt 0:02:39][%cal Ob5b4] Strongly threatening ...b4! A strong pair of Bishops.} 29. Rd1 {[%emt 0:02:10]} b4 {[%emt 0:03:50]} 30. axb4 {[%emt 0:00:33]} Bxd3 {[%emt 0:00:07]} 31. Rxd3 {[%emt 0:00:08]} axb4 {[%emt 0:00:15]} 32. cxb4 $11 {[%emt 0:04:19][%mdl 4096] Endgame KRB-KRB} Rc1+ {[%emt 0:00:19]} 33. Bd1 {[%emt 0:03:27]} Bxb2 {[%emt 0:00:40]} 34. Kf2 {[%emt 0:00:12]} Be5 {[%emt 0:00:11]} 35. g3 {[%emt 0:00:47]} Rb1 {[%emt 0:00:51]} 36. Ba4 {[%emt 0:02:20]} Rb2+ {[%emt 0:01:16]} 37. Kg1 {[%emt 0:00:25]} d6 {[%emt 0:00:42]} 38. Rb3 {[%emt 0:01:19]} Ra2 {[%emt 0:00:34]} 39. Bc6 {[%emt 0:02:10]} Kd8 {[%emt 0:00:08]} 40. b5 {[%emt 0:00:21]} Kc7 {[%emt 0:00:35]} 41. Be8 {[%emt 0:04:10]} Kb6 {[%emt 0:00:35]} 42. Bf7 {[%emt 0:13:02]} Ra5 {[%emt 0:01:33]} 43. Bxe6 {[%emt 0:00:59]} Rxb5 {[%emt 0:00:07]} 44. Kg2 {[%emt 0:00:58]} Rxb3 {[%emt 0:01:41]} 45. Bxb3 {[%emt 0:00:05] KB-KB} Kc7 {[%emt 0:00:43]} 46. Bg8 {[%emt 0:00:39]} h6 {[%emt 0:00:35]} 47. Kf3 {[%emt 0:01:19]} Kd8 {[%emt 0:01:24]} 48. Bh7 {[%emt 0:00:17]} g5 {[%emt 0:01:30]} 49. Kg4 {[%emt 0:00:16]} Ke7 {[%emt 0:00:35]} 50. Kh5 {[%emt 0:00:21]} Kf6 {[%emt 0:02:17]} 51. Kxh6 {[%emt 0:00:32]} Bc3 {[%emt 0:00:12]} 52. h4 {[%emt 0:08:46]} gxh4 {[%emt 0:00:38]} 53. gxh4 {[%emt 0:00:01]} Bd2 {[%emt 0:01:44]} 54. Bg8 {[%emt 0:00:44]} Bxe3+ {[%emt 0:00:08]} 55. Kh7 {[%emt 0:00:10]} Bf4 {[%emt 0:02:00] The position is equal.} 56. Bd5 {[%emt 0:00:11]} Be3 {[%emt 0:00:47]} 57. h5 {[%emt 0:01:05]} Bf4 {[%emt 0:00:11]} 58. h6 {[%emt 0:00:09]} Be3 {[%emt 0:00:14]} 59. Bc4 {[%emt 0:00:09]} Ke5 {[%emt 0:00:07] Weighted Error Value: White=0.04 (flawless) /Black=0.03 (flawless)} 1/2-1/2

[Event "44th Chess Olympiad Open 2022"]
[Site "Chennai"]
[Date "2022.08.05"]
[Round "7.21"]
[White "Pultinevicius, Paulius"]
[Black "Gong, Qianyun"]
[Result "1-0"]
[ECO "D46"]
[WhiteElo "2539"]
[BlackElo "2275"]
[Annotator "TA"]
[PlyCount "63"]
[EventDate "2022.07.29"]
[EventType "team-tourn"]
[EventCountry "IND"]
[SourceTitle "playchess.com"]
[Source "ChessBase"]
[SourceQuality "1"]
[WhiteTeam "Lithuania"]
[BlackTeam "SGP"]
[WhiteTeamCountry "LTU"]
[TimeControl "40/5400+30:1800+30"]

{[%evp 21,62,12,28,22,33,0,0,0,0,0,0,-25,106,121,183,175,205,198,486,491,635,643,729,723,704,694,784,775,771,752,1667,1641,5173,2444,1937,1764,29996,29974,29971,29965,6070,6070,29999]} 1. d4 {[%emt 0:00:02]} d5 {[%emt 0:00:05]} 2. c4 {[%emt 0:00:25]} c6 {[%emt 0:00:06]} 3. Nc3 {[%emt 0:02:36]} Nf6 {[%emt 0:00:13]} 4. e3 {[%emt 0:00:33]} e6 {[%emt 0:00:36]} 5. Nf3 {[%emt 0:00:20]} Nbd7 {[%emt 0:00:11]} 6. Qc2 {[%emt 0:00:08]} Bd6 {[%emt 0:00:11]} 7. Bd3 {[%emt 0:00:19]} O-O {[%emt 0:00:12]} 8. O-O {[%emt 0:00:48]} dxc4 {[%emt 0:00:09]} 9. Bxc4 {[%emt 0:00:06]} b5 {[%emt 0:00:05]} 10. Be2 {[%emt 0:00:49]} Bb7 {[%emt 0:00:24]} 11. e4 {[%emt 0:02:11] is cutting edge theory.} e5 {[%emt 0:00:17]} 12. dxe5 {[%emt 0:00:11] D46: Semi-Slav: 5 e3 Nbd7 6 Bd3, Black avoids the Meran.} Nxe5 {[%emt 0:00:05]} 13. Nd4 {[%emt 0:00:12]} Neg4 {[%emt 0:03:47]} 14. Nf5 {[%emt 0:01:16] The position is equal.} Bxh2+ {[%emt 0:35:30]} 15. Kh1 {[%emt 0:00:07]} Bb8 {[%emt 0:00:47] And now ...g6 would win.} 16. Bg5 {[%emt 0:03:01]} Qc7 {[%emt 0:04:22]} (16... Bc8 $1 $11) 17. f4 $16 {[%emt 0:02:24] [#] e5 is the strong threat. Active counter play! White stays focused until the end.} Bc8 $146 {[%emt 0:05:16]} (17... h6 $16 18. Bxf6 Nxf6) ({Predecessor:} 17... b4 18. e5 bxc3 19. exf6 gxf6 20. Qxc3 Ne5 21. Bxf6 {1-0 (21) Mendonca,L (2549)-Salimova,N (2395) chess24.com INT 2021}) 18. e5 $18 {[%emt 0:08:03]} Bxf5 {[%emt 0:13:55]} 19. Qxf5 {[%emt 0:00:09]} Ne3 $2 {[%emt 0:00:21] [#]} (19... g6 20. Qb1 Qc8 21. exf6 h6) 20. Qh3 $1 {[%emt 0:02:24]} Nfd5 {[%emt 0:00:45]} (20... Nfg4 21. Bxg4) 21. Bd3 {[%emt 0:04:08][%csl Gd3][%cal Rh3h7]} g6 {[%emt 0:10:02]} 22. Nxd5 {[%emt 0:03:28]} Nxd5 {[%emt 0:00:11]} 23. Rae1 {[%emt 0:00:18][%cal Ba1e1,Be1e6,Be6g6][%mdl 32] Threatens to win with Qh6.} f5 {[%emt 0:09:10]} 24. exf6 {[%emt 0:00:16]} Nxf6 {[%emt 0:08:13]} 25. Re6 {[%emt 0:08:08]} Nh5 {[%emt 0:00:00] [#]} 26. Bxg6 $1 {[%emt 0:00:18][%mdl 576] Demolition} hxg6 {[%emt 0:00:09]} (26... Ng3+ 27. Qxg3) 27. Rxg6+ {[%emt 0:00:05]} Ng7 {[%emt 0:00:06]} 28. Re1 {[%emt 0:00:16] White threatens Qb3+ and mate.} Rxf4 {[%emt 0:05:36]} 29. Bxf4 {[%emt 0:00:30]} Qxf4 {[%emt 0:00:04]} 30. Re8+ {[%emt 0:00:23]} Kf7 {[%emt 0:00:04] [#]} 31. Rxg7+ $1 {[%emt 0:00:17][%mdl 512]} Kxe8 {[%emt 0:00:28]} (31... Kxg7 32. Qh8+) 32. Qc8# {[%emt 0:00:07] Weighted Error Value: White=0.04 (flawless) /Black=1.44} 1-0

[Event "44th Chess Olympiad Open 2022"]
[Site "Chennai"]
[Date "2022.08.05"]
[Round "7.21"]
[White "Stremavicius, Titas"]
[Black "Goh, Wei Ming Kevin"]
[Result "1-0"]
[ECO "A22"]
[WhiteElo "2532"]
[BlackElo "2453"]
[Annotator "TA"]
[PlyCount "95"]
[EventDate "2022.07.29"]
[EventType "team-tourn"]
[EventCountry "IND"]
[SourceTitle "playchess.com"]
[Source "ChessBase"]
[SourceQuality "1"]
[WhiteTeam "Lithuania"]
[BlackTeam "SGP"]
[WhiteTeamCountry "LTU"]
[TimeControl "40/5400+30:1800+30"]

{[%evp 9,95,69,77,66,75,70,67,77,84,84,78,72,83,80,79,87,111,76,118,50,64,71,77,101,172,128,138,131,104,112,107,73,192,192,196,187,227,222,207,206,228,212,218,213,285,237,234,237,247,246,250,238,241,241,389,385,433,429,421,416,416,401,424,391,556,406,456,442,445,404,464,426,472,470,576,556,650,633,723,65,648,-246,645,-388,622,-445,593,365]} 1. c4 {[%emt 0:01:03]} e5 {[%emt 0:00:58]} 2. Nc3 {[%emt 0:00:00]} Nf6 {[%emt 0:00:09]} 3. Nf3 {[%emt 0:00:00]} e4 {[%emt 0:00:32]} 4. Ng5 {[%emt 0:00:00]} c6 {[%emt 0:00:10]} 5. Ngxe4 {[%emt 0:01:11]} Nxe4 {[%emt 0:00:04]} 6. Nxe4 {[%emt 0:00:09] A22: English Opening: 1...e5 2 Nc3 Nf6.} d5 {[%emt 0:00:02]} 7. cxd5 {[%emt 0:00:08]} cxd5 {[%emt 0:00:01]} 8. Ng3 {[%emt 0:00:09] White is slightly better.} (8. Qa4+ $2 Bd7 9. Qd4 dxe4 10. Qxe4+ Be7 $19) 8... h5 {[%emt 0:00:05]} 9. e3 {[%emt 0:00:05]} h4 {[%emt 0:00:04]} 10. Ne2 {[%emt 0:00:04]} Nc6 {[%emt 0:00:01]} 11. d4 {[%emt 0:05:16] [#]} Qf6 $146 {[%emt 0:01:10]} ({Predecessor:} 11... Bf5 12. Bd2 h3 13. Qb3 Qd7 14. Nf4 Bd6 15. Nxh3 O-O 16. Bd3 Bxh3 17. gxh3 Rac8 18. Qxd5 {½-½ (41) Ding,L (2806)-Tari,A (2654) chess24.com INT 2022}) 12. Nc3 {[%emt 0:06:06]} Bd6 {[%emt 0:00:10]} 13. a3 {[%emt 0:25:15]} Qg6 {[%emt 0:12:42]} 14. h3 {[%emt 0:08:17]} ({Worse is} 14. Nxd5 h3 15. g3 Qe4 16. Nf6+ gxf6 $17) ({Better is} 14. Qb3 $16) 14... O-O {[%emt 0:03:13]} 15. Qf3 {[%emt 0:03:35]} Na5 {[%emt 0:41:08]} 16. Qxd5 {[%emt 0:03:26]} b6 {[%emt 0:19:24]} 17. Bd2 {[%emt 0:08:55]} Bb7 {[%emt 0:00:00]} 18. Qa2 {[%emt 0:04:37]} Rac8 {[%emt 0:00:00]} 19. b4 Nc6 {[%emt 0:06:54] [#]} (19... Bxg2 $2 20. Rg1 Qe6 21. Qxe6 fxe6 22. Rxg2 $18) 20. Qb1 $1 {aiming for Qxg6.} f5 {[%emt 0:10:46]} (20... Qg5 $16) 21. Bc4+ $18 {[%emt 0:08:03]} Kh8 {[%emt 0:00:06][%cal Oc6d4] White must now prevent ...Nxd4!} 22. Bd5 {[%emt 0:03:01]} Na5 {[%emt 0:00:54] [#] Hoping for ...Bxd5.} 23. Bxb7 {[%emt 0:00:00]} ({Inferior is} 23. bxa5 Bxd5 24. Nxd5 Qxg2 $11) 23... Nxb7 {[%emt 0:00:00][%cal Ba5b7,Bb7d6,Bd6e4][%mdl 32]} 24. O-O Bb8 {[%emt 0:00:00]} 25. Qd3 Nd6 {[%emt 0:00:07]} 26. Rac1 Ne4 {[%emt 0:08:21]} 27. f4 {[%emt 0:01:09]} Ng3 {[%emt 0:01:30]} 28. Rfd1 {[%emt 0:02:00]} Rce8 {[%emt 0:00:22]} 29. Be1 {[%emt 0:00:25][%cal Bd2e1,Be1f2,Bf2h4][%mdl 32]} Rf7 {[%emt 0:00:00]} 30. Bf2 Rfe7 {[%emt 0:01:15]} 31. d5 {[%emt 0:00:20]} Bd6 {[%emt 0:01:43]} (31... Qh5 $142 32. Rc2 (32. d6 Rd7 $18) 32... Kh7) 32. Nb5 {[%emt 0:02:18][%cal Bc3b5,Bb5d4,Bd4f3,Bf3g5][%mdl 32]} Bb8 {[%emt 0:00:00]} 33. Nd4 Ne4 {[%emt 0:00:28]} 34. Bxh4 {[%emt 0:00:13]} Rd7 {[%emt 0:00:00]} 35. Nf3 {[%emt 0:14:49]} Qh5 {[%emt 0:00:00]} 36. Qb5 Rb7 (36... Qf7 {was called for.} 37. Rc2 Kg8) 37. Qa6 {[%emt 0:00:00]} Nd6 {[%emt 0:00:00]} 38. Bf2 {[%emt 0:01:31]} Rbe7 {[%emt 0:00:00]} 39. Ng5 {[%emt 0:01:03]} Rd7 {[%emt 0:00:00]} 40. a4 {[%emt 0:01:58]} Red8 {[%emt 0:00:00]} 41. Rd2 {[%emt 0:30:36]} Qe8 {[%emt 0:03:58]} 42. Rdc2 {[%emt 0:00:00]} Qe7 {[%emt 0:03:23]} 43. Qe2 {[%emt 0:00:00] Threatening mate with Qh5+.} g6 {[%emt 0:00:41] Against Qh5+} 44. Rc5 $2 {[%emt 0:00:00]} Re8 $2 {[%emt 0:03:44][%mdl 8192]} (44... bxc5 $14 45. bxc5 Rc8) 45. b5 $4 {[%emt 0:00:00][%mdl 8192]} Qf6 $4 {[%emt 0:00:30][%mdl 8192]} (45... bxc5 $19 46. Qb2+ Qg7) 46. Re1 $4 {[%emt 0:00:00][%mdl 8192]} Kg8 $4 {[%emt 0:00:30][%mdl 8192]} (46... bxc5 $19 47. Qc2 Nf7) 47. Rc3 $4 {[%emt 0:00:00][%mdl 8192]} Qd8 $4 {[%emt 0:00:30][%mdl 8192]} (47... Qxc3 $19 48. g4 Ne4 49. Nxe4 Rxe4) 48. Qd3 {[%emt 0:00:00] Weighted Error Value: White=0.46/Black=0.61} 1-0

[Event "44th Chess Olympiad Open 2022"]
[Site "Chennai"]
[Date "2022.08.05"]
[Round "7.21"]
[White "Siddharth, Jagadeesh"]
[Black "Juksta, Karolis"]
[Result "1/2-1/2"]
[ECO "C02"]
[WhiteElo "2426"]
[BlackElo "2412"]
[Annotator "ChessBase"]
[PlyCount "60"]
[EventDate "2022.07.29"]
[EventType "team-tourn"]
[EventCountry "IND"]
[SourceTitle "playchess.com"]
[Source "ChessBase"]
[SourceQuality "1"]
[WhiteTeam "SGP"]
[BlackTeam "Lithuania"]
[BlackTeamCountry "LTU"]
[TimeControl "40/5400+30:1800+30"]

1. e4 {[%emt 0:00:13]} e6 {[%emt 0:00:18]} 2. d4 {[%emt 0:00:20]} d5 {[%emt 0:00:08]} 3. e5 {[%emt 0:00:19]} c5 {[%emt 0:00:24]} 4. c3 {[%emt 0:00:20]} Bd7 {[%emt 0:02:01]} 5. Nf3 {[%emt 0:00:17]} Nc6 {[%emt 0:03:16]} 6. Be2 {[%emt 0:00:20]} Nge7 {[%emt 0:01:19]} 7. O-O {[%emt 0:00:18]} Ng6 {[%emt 0:05:16]} 8. g3 {[%emt 0:00:12]} Be7 {[%emt 0:00:55]} 9. h4 {[%emt 0:00:13]} cxd4 {[%emt 0:10:27]} 10. cxd4 {[%emt 0:00:49]} O-O {[%emt 0:00:07]} 11. h5 {[%emt 0:00:14]} Nh8 {[%emt 0:00:06]} 12. h6 {[%emt 0:03:07]} g6 {[%emt 0:01:36]} 13. Nc3 {[%emt 0:05:55]} f6 {[%emt 0:01:26]} 14. exf6 {[%emt 0:18:36]} Bxf6 {[%emt 0:00:14]} 15. Be3 {[%emt 0:06:08]} Nf7 {[%emt 0:01:08]} 16. Qd2 {[%emt 0:04:49]} Nd6 {[%emt 0:10:44]} 17. Bd3 {[%emt 0:06:51]} Nb4 {[%emt 0:16:07]} 18. Bf4 {[%emt 0:10:08]} Qb6 {[%emt 0:07:02]} 19. Ne5 {[%emt 0:17:49]} Bxe5 {[%emt 0:15:06]} 20. Bxe5 {[%emt 0:00:02]} Nxd3 {[%emt 0:03:05]} 21. Qxd3 {[%emt 0:00:02]} Nf5 {[%emt 0:03:46]} 22. Qd2 {[%emt 0:01:37]} Rac8 {[%emt 0:00:22]} 23. Rac1 {[%emt 0:05:53]} a5 {[%emt 0:02:11]} 24. Rfe1 {[%emt 0:06:17]} Rc4 {[%emt 0:04:44]} 25. Ne2 {[%emt 0:00:23]} Qb4 {[%emt 0:02:33]} 26. Qg5 {[%emt 0:06:33]} Rxc1 {[%emt 0:05:22]} 27. Rxc1 {[%emt 0:00:15]} Qxb2 {[%emt 0:00:07]} 28. Re1 {[%emt 0:00:14]} Qb4 {[%emt 0:00:54]} 29. Rc1 {[%emt 0:00:08]} Qb2 {[%emt 0:00:14]} 30. Re1 {[%emt 0:04:14]} Qb4 {[%emt 0:00:21]} 1/2-1/2